fUSD/lending_fUSD_20260425
["ID","MTS","AMOUNT","RATE_DAILY","PERIOD"]
[421113973,1777078232308,-150.99,8.885e-05,2]
[421113974,1777078232317,-299.99,8.885e-05,2]
[421113975,1777078232326,-3862.56,8.885e-05,2]
[421113976,1777078232336,-2384.67180115,8.885e-05,2]
[421113977,1777078232347,-9829.85819885,8.885e-05,2]
[421113978,1777078232356,-255.0,8.885e-05,2]
[421113979,1777078232365,-653.75935197,9e-05,3]
[421113980,1777078232436,-643.82857995,9e-05,3]
[421113985,1777078237893,-2302.41206808,9e-05,3]
[421113986,1777078237903,-912.0,9.066e-05,5]
[421113987,1777078237913,-200.0,9.111e-05,2]
[421113988,1777078237923,-1428.38747117,9.111e-05,2]
[421113989,1777078237932,-771.01748645,9.111e-05,2]
[421113990,1777078237943,-181.08010149,9.111e-05,2]
[421113991,1777078237952,-209.40437684,9.111e-05,2]
[421113992,1777078237962,-500.0,9.373e-05,2]
[421113993,1777078237972,-1568.85,9.373e-05,2]
[421113994,1777078237981,-151.0,9.373e-05,2]
[421113995,1777078237991,-151.0,9.373e-05,2]
[421113996,1777078238000,-151.0,9.373e-05,2]
[421113997,1777078238010,-1375.95,9.391e-05,2]
[421113998,1777078238019,-1605.29,9.391e-05,2]
[421113999,1777078238029,-500.0,9.427e-05,2]
[421114000,1777078238039,-500.0,9.427e-05,2]
[421114001,1777078238048,-500.0,9.427e-05,2]
[421114002,1777078238057,-500.0,9.427e-05,2]
[421114003,1777078238067,-500.0,9.427e-05,2]
[421114004,1777078238077,-500.0,9.427e-05,2]
[421114005,1777078238086,-500.0,9.427e-05,2]
[421114006,1777078238096,-500.0,9.427e-05,2]
[421114007,1777078238106,-500.0,9.427e-05,2]
[421114008,1777078238115,-500.0,9.427e-05,2]
[421114009,1777078238129,-500.0,9.427e-05,2]
[421114010,1777078238139,-500.0,9.427e-05,2]
[421114011,1777078238149,-500.0,9.427e-05,2]
[421114012,1777078238159,-500.0,9.427e-05,2]
[421114013,1777078238169,-500.0,9.427e-05,2]
[421114014,1777078238179,-500.0,9.427e-05,2]
[421114015,1777078238189,-500.0,9.427e-05,2]
[421114016,1777078238199,-500.0,9.427e-05,2]
[421114017,1777078238208,-568.56681473,9.427e-05,2]
[421114019,1777078238218,-500.0,9.427e-05,2]
[421114021,1777078238228,-500.0,9.427e-05,2]
[421114022,1777078238238,-500.0,9.427e-05,2]
[421114023,1777078238248,-500.0,9.427e-05,2]
[421114024,1777078238258,-500.0,9.427e-05,2]
[421114025,1777078238268,-469.91739622,9.427e-05,2]
[421114027,1777078238278,-500.0,9.427e-05,2]
[421114029,1777078238288,-316.62077568,9.427e-05,2]
[421114031,1777078238298,-500.0,9.427e-05,2]
[421114033,1777078238307,-316.62077568,9.427e-05,2]
[421114035,1777078238317,-999.99,9.428e-05,2]
[421114037,1777078238328,-3747.95166167,9.428e-05,2]
[421114039,1777078238341,-1252.03833833,9.428e-05,2]
[421114041,1777078238350,-2612.7493652,9.428e-05,2]
[421114042,1777078238366,-997.91895596,9.428e-05,2]
[421114043,1777078238382,-6389.32167884,9.428e-05,2]
[421114044,1777078238392,-71610.67832116,9.428e-05,2]
[421114045,1777078238411,-1108.13607521,9.428e-05,2]
[421114046,1777078238425,-22457.21444785,9.428e-05,2]
[421114048,1777078238436,-14860.68728384,9.428e-05,2]
[421114079,1777078240223,-94.00387194,9.428e-05,2]
[421114080,1777078240232,-248.10412806,9.428e-05,2]
[421114081,1777078240332,-405.26152993,9.428e-05,2]
[421114082,1777078240491,-699.42965099,9.428e-05,2]
[421114083,1777078240546,-236.19469102,9.428e-05,2]
[421114084,1777078240557,-7568.80530898,9.428e-05,2]
[421114092,1777078243427,-500.0,9.041e-05,2]
[421114093,1777078243437,-103.0,9.428e-05,2]
[421114094,1777078243467,-937.70955075,9.428e-05,2]
[421114096,1777078243479,-1048.0,9.428e-05,2]
[421114097,1777078243497,-342.47514027,9.428e-05,2]
[421114098,1777078243507,-500.0,9.452e-05,2]
[421114099,1777078243516,-500.0,9.452e-05,2]
[421114100,1777078243526,-500.0,9.452e-05,2]
[421114101,1777078243535,-500.0,9.452e-05,2]
[421114102,1777078243544,-500.0,9.452e-05,2]
[421114103,1777078243553,-500.0,9.452e-05,2]
[421114104,1777078243562,-500.0,9.452e-05,2]
[421114105,1777078243571,-537.97853255,9.452e-05,2]
[421114106,1777078243581,-1117.0,9.466e-05,2]
[421114107,1777078243590,-226.2178497,9.548e-05,2]
[421114108,1777078243600,-162.24500663,9.576e-05,2]
[421114109,1777078243610,-160.0,9.576e-05,2]
[421114110,1777078243619,-1514.0,9.652e-05,2]
[421114111,1777078243628,-200.0,9.659e-05,2]
[421114112,1777078243638,-1481.23780761,9.659e-05,2]
[421114113,1777078243647,-917.32985558,9.659e-05,2]
[421114114,1777078243656,-187.78006525,9.659e-05,2]
[421114115,1777078243666,-281.58698153,9.659e-05,2]
[421114116,1777078243676,-172.14876088,9.726e-05,2]
[421114117,1777078243688,-875.85123912,9.726e-05,2]
[421114118,1777078243698,-3531.0,9.726e-05,2]
[421114119,1777078243708,-623.0,9.726e-05,2]
[421114120,1777078243717,-1266.0,9.726e-05,2]
[421114121,1777078243725,-416.0,9.726e-05,2]
[421114122,1777078243735,-3781.0,9.726e-05,2]
[421114123,1777078243745,-2475.0,9.726e-05,2]
[421114124,1777078243755,-1148.0,9.773e-05,5]
[421114125,1777078243765,-576.8,9.773e-05,2]
[421114126,1777078243775,-433.0,9.773e-05,2]
[421114127,1777078243785,-9473.90459955,9.786e-05,2]
[421114128,1777078243795,-250.0,9.89e-05,2]
[421114129,1777078243805,-11980.04950634,9.91e-05,2]
[421114130,1777078243815,-500.0,9.923e-05,2]
[421114131,1777078243825,-509.51537752,9.923e-05,2]
[421114132,1777078243834,-1669.46870413,9.923e-05,2]
[421114133,1777078243844,-3408.91749859,9.938e-05,2]
[421114134,1777078243857,-979.16666667,9.938e-05,2]
[421114135,1777078243870,-351.012724,9.938e-05,2]
[421114137,1777078246233,-500.0,9.671e-05,2]
[421114138,1777078246242,-849.7868,9.938e-05,2]
[421114139,1777078246340,-3004.53071096,9.938e-05,2]
[421114140,1777078246501,-4200.0,9.938e-05,2]
[421114159,1777079161202,300.0,7.174e-05,2]
[421114160,1777079221439,300.0,7.174e-05,2]
[421114161,1777079347664,-150.0,7.175e-05,2]
[421114162,1777079347687,-150.0,7.175e-05,2]
[421114163,1777079347709,-280.7086808,7.175e-05,2]
[421114164,1777079347732,-150.0,7.175e-05,2]
[421114165,1777079347757,-150.0,7.175e-05,2]
[421114166,1777079347781,-115.86249069,7.175e-05,2]
[421114173,1777079432079,-34.13750931,7.175e-05,2]
[421114174,1777079432089,-156.08110581,7.175e-05,2]
[421114175,1777079432098,-150.0,7.175e-05,2]
[421114176,1777079432108,-148.93394783,7.175e-05,2]
[421114177,1777079432137,-1.06605217,7.175e-05,2]
[421114178,1777079432147,-150.0,7.232e-05,2]
[421114179,1777079432156,-150.0,7.289e-05,2]
[421114180,1777079432166,-150.0,7.335e-05,2]
[421114181,1777079432176,-150.0,7.335e-05,2]
[421114182,1777079432185,-150.0,7.346e-05,2]
[421114183,1777079432195,-150.0,7.375e-05,2]
[421114184,1777079432204,-150.0,7.403e-05,2]
[421114185,1777079432214,-150.0,7.46e-05,2]
[421114186,1777079432223,-150.0,7.494e-05,2]
[421114187,1777079432233,-150.0,7.494e-05,2]
[421114188,1777079432243,-150.0,7.517e-05,2]
[421114189,1777079432252,-150.0,7.574e-05,2]
[421114190,1777079432262,-150.0,7.574e-05,2]
[421114191,1777079432272,-150.0,7.574e-05,2]
[421114192,1777079432282,-641.25432338,7.611e-05,2]
[421114193,1777079432292,-426.98625817,7.611e-05,2]
[421114194,1777079432302,-239.0,7.622e-05,2]
[421114195,1777079432311,-1200.0,7.63e-05,2]
[421114196,1777079432324,-150.0,7.631e-05,2]
[421114197,1777079432334,-150.0,7.654e-05,2]
[421114198,1777079432343,-150.0,7.654e-05,2]
[421114199,1777079432353,-150.0,7.688e-05,2]
[421114200,1777079432363,-150.0,7.745e-05,2]
[421114201,1777079432372,-300.0,7.748e-05,2]
[421114202,1777079432382,-150.0,7.749e-05,2]
[421114203,1777079432392,-150.0,7.749e-05,2]
[421114204,1777079432401,-150.0,7.749e-05,2]
[421114205,1777079432411,-150.0,7.749e-05,2]
[421114206,1777079432420,-150.0,7.773e-05,2]
[421114207,1777079432430,-150.0,7.802e-05,2]
[421114208,1777079432440,-150.0,7.813e-05,2]
[421114209,1777079432450,-150.0,7.813e-05,2]
[421114210,1777079432460,-4363.478,7.819e-05,2]
[421114211,1777079432470,-309.756,7.819e-05,2]
[421114212,1777079432479,-150.0,7.859e-05,2]
[421114214,1777079432488,-150.0,7.859e-05,2]
[421114216,1777079432498,-500.0,7.876e-05,2]
[421114217,1777079432508,-174.21047777,7.876e-05,2]
[421114219,1777079432517,-342.23136537,7.876e-05,2]
[421114221,1777079432550,-157.76863463,7.876e-05,2]
[421114222,1777079432560,-500.0,7.876e-05,2]
[421114224,1777079432569,-500.0,7.876e-05,2]
[421114226,1777079432578,-500.0,7.876e-05,2]
[421114228,1777079432588,-500.0,7.876e-05,2]
[421114230,1777079432597,-500.0,7.876e-05,2]
[421114232,1777079432607,-500.0,7.876e-05,2]
[421114234,1777079432616,-162.00165809,7.876e-05,2]
[421114237,1777079432636,-337.99834191,7.876e-05,2]
[421114239,1777079432645,-500.0,7.876e-05,2]
[421114241,1777079432654,-500.0,7.876e-05,2]
[421114243,1777079432664,-500.0,7.876e-05,2]
[421114245,1777079432674,-500.0,7.876e-05,2]
[421114246,1777079432684,-500.0,7.876e-05,2]
[421114247,1777079432693,-177.51529163,7.876e-05,2]
[421114248,1777079432702,-500.0,7.876e-05,2]
[421114249,1777079432712,-500.0,7.876e-05,2]
[421114250,1777079432721,-500.0,7.876e-05,2]
[421114251,1777079432731,-500.0,7.876e-05,2]
[421114252,1777079432740,-500.0,7.876e-05,2]
[421114253,1777079432749,-500.0,7.876e-05,2]
[421114254,1777079432759,-500.0,7.876e-05,2]
[421114255,1777079432777,-500.0,7.876e-05,2]
[421114256,1777079432789,-500.0,7.876e-05,2]
[421114257,1777079432799,-500.0,7.876e-05,2]
[421114258,1777079432808,-500.0,7.876e-05,2]
[421114259,1777079432818,-500.0,7.876e-05,2]
[421114260,1777079432828,-500.0,7.876e-05,2]
[421114261,1777079432838,-500.0,7.876e-05,2]
[421114262,1777079432847,-500.0,7.876e-05,2]
[421114263,1777079432857,-500.0,7.876e-05,2]
[421114264,1777079432867,-500.0,7.876e-05,2]
[421114265,1777079432876,-500.0,7.876e-05,2]
[421114266,1777079432886,-500.0,7.876e-05,2]
[421114267,1777079432896,-500.0,7.876e-05,2]
[421114268,1777079432906,-500.0,7.876e-05,2]
[421114269,1777079432915,-500.0,7.876e-05,2]
[421114270,1777079432925,-343499.22313693,7.877e-05,2]
[421114271,1777079432939,-84766.03989453,7.877e-05,2]
[421114272,1777079432951,-92416.50066854,7.877e-05,2]
[421114273,1777079432960,-1500.0,7.878e-05,2]
[421114274,1777079432970,-2200.0,7.9e-05,2]
[421114275,1777079432981,-150.0,7.916e-05,2]
[421114276,1777079432992,-150.0,7.973e-05,2]
[421114277,1777079433003,-156.70793094,7.973e-05,2]
[421114278,1777079433014,-157.38550777,7.973e-05,2]
[421114279,1777079433026,-158.65291331,7.973e-05,2]
[421114280,1777079433036,-156.4221754,7.973e-05,2]
[421114281,1777079433046,-184.24556778,7.973e-05,2]
[421114282,1777079433057,-299.99,7.977e-05,2]
[421114283,1777079433067,-206.7238,7.978e-05,2]
[421114284,1777079433076,-21134.90252112,8e-05,2]
[421114285,1777079433089,-1254.41808677,8e-05,2]
[421114286,1777079433102,-1358.72272172,8e-05,2]
[421114287,1777079433113,-781.51955281,8e-05,2]
[421114288,1777079433130,-501.52740981,8e-05,2]
[421114295,1777079438198,-1000.0,8e-05,2]
[421114296,1777079438263,-11286.80970777,8e-05,2]
[421114297,1777079438272,-439.26,8e-05,2]
[421114298,1777079438282,-150.99,8e-05,2]
[421114299,1777079438291,-9999.99,8e-05,2]
[421114300,1777079438300,-4400.0,8e-05,2]
[421114301,1777079438309,-9687.81404172,8.219e-05,2]
[421114302,1777079438320,-312.17595828,8.219e-05,2]
[421114303,1777079438330,-500.0,8.219e-05,2]
[421114304,1777079438339,-500.0,8.219e-05,2]
[421114305,1777079438348,-351.22525032,8.219e-05,2]
[421114306,1777079438358,-500.0,8.219e-05,2]
[421114307,1777079438369,-280.0,8.219e-05,2]
[421114308,1777079438378,-480.0,8.393e-05,2]
[421114309,1777079438388,-420.0,8.523e-05,2]
[421114310,1777079438398,-569.5582,8.548e-05,2]
[421114311,1777079438408,-151.0,8.569e-05,2]
[421114312,1777079438417,-300.0,8.601e-05,2]
[421114313,1777079438426,-2384.0,8.603e-05,2]
[421114314,1777079438436,-500.0,8.613e-05,2]
[421114315,1777079438447,-174.42,8.613e-05,2]
[421114316,1777079438456,-1038.0,8.625e-05,5]
[421114317,1777079438467,-250.0,8.625e-05,2]
[421114318,1777079438476,-6150.30787524,8.64e-05,2]
[421114319,1777079438491,-496.19290314,8.64e-05,2]
[421114320,1777079438525,-2281.17045822,8.64e-05,2]
[421114321,1777079438545,-14619.42564278,8.64e-05,2]
[421114322,1777079438556,-619.0663776,8.64e-05,2]
[421114323,1777079438568,-2041.44350403,8.64e-05,2]
[421114324,1777079438582,-8191.73144964,8.64e-05,2]
[421114366,1777079440548,-216547.03488938,8.64e-05,2]
[421114367,1777079440671,-16340.89880067,8.64e-05,2]
[421114368,1777079440738,-396.69662351,8.64e-05,2]
[421114369,1777079440804,-2190.3681756,8.64e-05,2]
[421114392,1777079443292,-335.04991627,8.64e-05,2]
[421114399,1777079447346,-5929.99231286,8.64e-05,2]
[421114400,1777079447370,-350.625,8.64e-05,2]
[421114401,1777079447385,-2876.91783824,8.64e-05,2]
[421114402,1777079447401,-47892.81090496,8.64e-05,2]
[421114403,1777079447413,-4957.36683379,8.64e-05,2]
[421114404,1777079583108,455.94553323,8.555e-05,54]
[421114405,1777080185103,777.0,7.175e-05,2]
[421114407,1777080302357,150.0,6.978e-05,2]
[421114408,1777080302391,150.0,7.107e-05,2]
[421114409,1777080317856,150.0,6.978e-05,2]
[421114410,1777080317909,150.0,7.075e-05,2]
[421114411,1777080317984,150.0,7.172e-05,2]
[421114412,1777080318527,150.0,6.978e-05,2]
[421114413,1777080321180,150.0,6.978e-05,2]
[421114414,1777080325594,150.0,6.978e-05,2]
[421114415,1777080325637,150.1908536,6.978e-05,2]
[421114416,1777080325684,150.0,6.978e-05,2]
[421114417,1777080325720,150.0,7.089e-05,2]
[421114418,1777080330552,167.89924726,6.978e-05,2]
[421114419,1777080330868,150.0,6.978e-05,2]
[421114420,1777080336705,150.0,6.978e-05,2]
[421114421,1777080336768,150.0,6.978e-05,2]
[421114422,1777080336803,150.0,7.017e-05,2]
[421114423,1777080336852,150.0,7.056e-05,2]
[421114424,1777080336887,150.0,7.094e-05,2]
[421114425,1777080336921,150.0,7.133e-05,2]
[421114426,1777080336964,150.0,7.172e-05,2]
[421114427,1777080425235,235.21724203,7.175e-05,2]
[421114428,1777080458385,-405.25,6.849e-05,2]
[421114429,1777080458820,-53.6232395,6.973e-05,2]
[421114430,1777080485118,3255.07237781,6.592e-05,2]
[421114431,1777080561127,-148.9967605,6.973e-05,2]
[421114432,1777080561149,-877.51582114,6.973e-05,2]
[421114433,1777080613026,154.29143792,8.44e-05,21]
[421114434,1777080632555,-764.99473768,6.973e-05,2]
[421114446,1777080632956,-1378.81234133,6.973e-05,2]
[421114447,1777080632966,-150.0,7.2e-05,2]
[421114448,1777080632977,-150.0,7.211e-05,2]
[421114449,1777080632986,-150.0,7.237e-05,2]
[421114450,1777080632996,-150.0,7.249e-05,2]
[421114451,1777080633005,-150.0,7.269e-05,2]
[421114452,1777080633015,-150.0,7.288e-05,2]
[421114453,1777080633025,-150.0,7.31e-05,2]
[421114454,1777080633034,-150.0,7.327e-05,2]
[421114455,1777080633044,-150.0,7.366e-05,2]
[421114456,1777080633054,-150.0,7.366e-05,2]
[421114457,1777080633063,-150.0,7.366e-05,2]
[421114458,1777080633081,-150.0,7.366e-05,2]
[421114459,1777080633093,-150.0,7.366e-05,2]
[421114460,1777080633103,-150.0,7.405e-05,2]
[421114461,1777080633113,-150.0,7.421e-05,2]
[421114462,1777080633124,-150.0,7.443e-05,2]
[421114463,1777080633134,-150.0,7.463e-05,2]
[421114464,1777080633144,-150.0,7.482e-05,2]
[421114465,1777080633154,-150.0,7.495e-05,2]
[421114466,1777080633163,-1200.0,7.52e-05,2]
[421114467,1777080633173,-150.0,7.521e-05,2]
[421114468,1777080633183,-467.8435,7.521e-05,2]
[421114469,1777080633192,-150.0,7.532e-05,2]
[421114470,1777080633202,-1200.0,7.558e-05,2]
[421114471,1777080633212,-300.0,7.558e-05,2]
[421114472,1777080633221,-150.0,7.56e-05,2]
[421114473,1777080633231,-150.0,7.56e-05,2]
[421114474,1777080633243,-150.0,7.598e-05,2]
[421114475,1777080633254,-150.0,7.62e-05,2]
[421114476,1777080633263,-3490.782,7.621e-05,2]
[421114477,1777080633273,-247.805,7.621e-05,2]
[421114478,1777080633282,-150.0,7.624e-05,2]
[421114479,1777080633292,-150.0,7.637e-05,2]
[421114480,1777080633302,-150.0,7.643e-05,2]
[421114481,1777080633312,-150.0,7.657e-05,2]
[421114482,1777080633321,-62145.35061886,7.667e-05,2]
[421114483,1777080633335,-561.36,7.667e-05,2]
[421114493,1777080639295,-4257.07028114,7.667e-05,2]
[421114494,1777080639305,-251.92953522,7.67e-05,2]
[421114495,1777080639315,-150.0,7.676e-05,2]
[421114496,1777080639324,-150.0,7.715e-05,2]
[421114497,1777080639334,-461.44,7.753e-05,2]
[421114498,1777080639343,-150.0,7.753e-05,2]
[421114499,1777080639353,-150.0,7.753e-05,2]
[421114500,1777080639362,-150.0,7.753e-05,2]
[421114501,1777080639372,-150.0,7.753e-05,2]
[421114502,1777080639381,-262.16487207,7.753e-05,2]
[421114503,1777080639390,-150.0,7.753e-05,2]
[421114504,1777080639403,-150.0,7.753e-05,2]
[421114505,1777080639412,-150.0,7.753e-05,2]
[421114506,1777080639422,-150.0,7.753e-05,2]
[421114507,1777080639431,-16230.67940774,7.767e-05,2]
[421114508,1777080639440,-1086.1218991,7.776e-05,2]
[421114509,1777080639450,-151.0,7.873e-05,2]
[421114510,1777080639459,-13480.65404014,7.876e-05,2]
[421114511,1777080639470,-611.14595986,7.876e-05,2]
[421114512,1777080639480,-4999.99,7.876e-05,2]
[421114513,1777080639489,-1213.01,7.876e-05,2]
[421114514,1777080639499,-150.99,7.876e-05,2]
[421114515,1777080639508,-7885.55132398,7.876e-05,2]
[421114516,1777080639520,-676.55834489,7.876e-05,2]
[421114517,1777080639531,-956.79071888,7.876e-05,2]
[421114519,1777080639543,-458.21523207,7.876e-05,2]
[421114521,1777080639554,-472.00599673,7.876e-05,2]
[421114523,1777080639566,-611.85130665,7.876e-05,2]
[421114548,1777080641602,-225.8370768,7.876e-05,2]
[421114549,1777080641614,-5117.43,7.876e-05,2]
[421114550,1777080641625,-9999.99,7.876e-05,2]
[421114551,1777080641636,-9999.99,7.876e-05,2]
[421114552,1777080641648,-5300.0,7.9e-05,2]
[421114553,1777080641659,-439.26,8e-05,2]
[421114554,1777080641670,-10600.0,8e-05,2]
[421114555,1777080641681,-461.44,8.027e-05,2]
[421114556,1777080641691,-500.0,8.219e-05,2]
[421114557,1777080641700,-361.0,8.272e-05,2]
[421114558,1777080641710,-461.44,8.301e-05,2]
[421114559,1777080641719,-255.0,8.382e-05,2]
[421114560,1777080641728,-152.0,8.416e-05,7]
[421114561,1777080641737,-250.0,8.445e-05,2]
[421114562,1777080641746,-16735.606903,8.542e-05,2]
[421114563,1777080641756,-2697.5374127,8.542e-05,2]
[421114564,1777080641764,-183.42,8.551e-05,2]
[421114565,1777080641773,-164.0,8.555e-05,3]
[421114566,1777080641783,-1752.0,8.555e-05,3]
[421114567,1777080641793,-195.0,8.555e-05,3]
[421114568,1777080641802,-156.0,8.555e-05,3]
[421114569,1777080641811,-174.42,8.561e-05,2]
[421114570,1777080641821,-461.44,8.575e-05,2]
[421114571,1777080641830,-505.0,8.603e-05,2]
[421114572,1777080641840,-151.0,8.637e-05,2]
[421114573,1777080641850,-500.0,8.64e-05,2]
[421114574,1777080641862,-461.48,8.849e-05,2]
[421114575,1777080641872,-15900.0,8.9e-05,3]
[421114576,1777080641882,-578.20924308,8.957e-05,2]
[421114577,1777080641892,-695.39793187,8.957e-05,2]
[421114578,1777080641902,-200.0,8.957e-05,2]
[421114579,1777080641913,-1377.42282659,8.957e-05,2]
[421114580,1777080641922,-174.61919141,8.957e-05,2]
[421114581,1777080641934,-21200.0,9e-05,3]
[421114582,1777080641945,-569.5582,9.041e-05,2]
[421114583,1777080641956,-1037.0,9.113e-05,5]
[421114584,1777080641966,-1091.0,9.113e-05,5]
[421114585,1777080641977,-2384.0,9.123e-05,2]
[421114586,1777080641987,-491.69425177,9.136e-05,2]
[421114587,1777080641997,-500.0,9.203e-05,2]
[421114588,1777080642007,-433.0,9.22e-05,2]
[421114589,1777080642016,-151.0,9.228e-05,2]
[421114590,1777080642026,-151.0,9.228e-05,2]
[421114591,1777080642036,-151.0,9.228e-05,2]
[421114592,1777080642045,-151.0,9.228e-05,2]
[421114593,1777080642054,-151.0,9.228e-05,2]
[421114594,1777080642064,-151.0,9.228e-05,2]
[421114595,1777080642075,-718.751973,9.228e-05,2]
[421114596,1777080642084,-718.751973,9.228e-05,2]
[421114597,1777080642094,-718.751973,9.228e-05,2]
[421114598,1777080642104,-718.751973,9.228e-05,2]
[421114599,1777080642113,-250.0,9.228e-05,2]
[421114600,1777080642123,-1752.0,9.263e-05,3]
[421114601,1777080642132,-195.0,9.263e-05,3]
[421114602,1777080642143,-151.0,9.373e-05,2]
[421114603,1777080642152,-151.0,9.384e-05,2]
[421114604,1777080642164,-227.06,9.391e-05,2]
[421114605,1777080642173,-3782.0,9.4e-05,2]
[421114606,1777080642184,-2000.0,9.4e-05,2]
[421114607,1777080642194,-391.0,9.452e-05,2]
[421114608,1777080642204,-200.0,9.505e-05,2]
[421114609,1777080642213,-1428.38747117,9.505e-05,2]
[421114610,1777080642223,-181.08010149,9.505e-05,2]
[421114611,1777080642232,-162.24500663,9.536e-05,2]
[421114612,1777080642241,-160.0,9.536e-05,2]
[421114613,1777080642251,-150.0,9.589e-05,2]
[421114614,1777080642261,-1266.0,9.601e-05,2]
[421114615,1777080642270,-150.0,9.601e-05,2]
[421114616,1777080642280,-623.845,9.601e-05,2]
[421114617,1777080642289,-1048.0,9.601e-05,2]
[421114618,1777080642298,-255.629651,9.61e-05,2]
[421114619,1777080642307,-2000.0,9.636e-05,2]
[421114620,1777080642317,-350.0,9.64e-05,2]
[421114621,1777080642326,-1532.0,9.646e-05,2]
[421114622,1777080642335,-1532.0,9.646e-05,2]
[421114623,1777080642344,-1532.0,9.646e-05,2]
[421114624,1777080642354,-152.0,9.646e-05,2]
[421114625,1777080642363,-185.3567589,9.646e-05,2]
[421114626,1777080642372,-1532.0,9.646e-05,2]
[421114627,1777080642382,-167.0,9.646e-05,2]
[421114628,1777080642392,-150.0,9.687e-05,2]
[421114629,1777080642401,-160.0,9.692e-05,2]
[421114630,1777080642410,-1439.977177,9.692e-05,2]
[421114631,1777080642420,-2719.954354,9.692e-05,2]
[421114632,1777080642430,-160.0,9.692e-05,2]
[421114633,1777080642439,-634.86829981,9.692e-05,2]
[421114634,1777080642453,-458.8732395,9.692e-05,2]
[421114665,1777080644374,-2.79730861,9.692e-05,2]
[421114667,1777080644385,-206.41785808,9.692e-05,2]
[421114669,1777080644394,-847.58214192,9.692e-05,2]
[421114671,1777080644406,-288.95158278,9.692e-05,2]
[421114674,1777080644417,-1309.3796873,9.692e-05,2]
[421114676,1777080644427,-160.0,9.692e-05,2]
[421114677,1777080644436,-1471.600025,9.692e-05,2]
[421114679,1777080644447,-2783.20005,9.692e-05,2]
[421114681,1777080644456,-323.45,9.7e-05,2]
[421114683,1777080644466,-150.0,9.726e-05,2]
[421114685,1777080644476,-150.0,9.726e-05,2]
[421114688,1777080644485,-150.0,9.726e-05,2]
[421114689,1777080644494,-150.0,9.726e-05,2]
[421114691,1777080644504,-151.0,9.736e-05,2]
[421114693,1777080644514,-151.0,9.736e-05,2]
[421114695,1777080644523,-151.0,9.736e-05,2]
[421114698,1777080644532,-151.0,9.736e-05,2]
[421114699,1777080644543,-718.751973,9.736e-05,2]
[421114701,1777080644552,-718.751973,9.736e-05,2]
[421114703,1777080644561,-718.751973,9.736e-05,2]
[421114705,1777080644570,-147.37924584,9.736e-05,2]
[421114776,1777080646992,-1009.25,9.4e-05,2]
[421114777,1777080647020,-339.75,9.4e-05,2]
[421114778,1777080647029,-571.37272716,9.736e-05,2]
[421114779,1777080647039,-1000.0,9.751e-05,2]
[421114780,1777080647048,-574.82803927,9.773e-05,2]
[421114781,1777080647060,-1163.13436114,9.773e-05,2]
[421114782,1777080647180,-510.29841688,9.773e-05,2]
[421114883,1777080760854,567.12,0.000165,120]
[421114884,1777081009707,-300.0,7.665e-05,2]
[421114885,1777081009737,-300.0,7.665e-05,2]
[421114886,1777081009765,-500.0,7.666e-05,2]
[421114887,1777081009793,-500.0,7.666e-05,2]
[421114888,1777081009821,-155.62245019,7.666e-05,2]
[421114889,1777081009854,-500.0,7.666e-05,2]
[421114890,1777081009886,-500.0,7.666e-05,2]
[421114891,1777081009919,-500.0,7.666e-05,2]
[421114892,1777081009952,-500.0,7.666e-05,2]
[421114893,1777081009986,-500.0,7.666e-05,2]
[421114894,1777081010020,-230.32329845,7.666e-05,2]
[421114895,1777081010054,-164.32284552,7.666e-05,2]
[421114896,1777081010084,-150.0,7.666e-05,2]
[421114897,1777081018678,-1091.91703714,7.666e-05,2]
[421114898,1777081018742,-7565.6487374,7.667e-05,2]
[421114900,1777081173708,-300.0,7.665e-05,2]
[421114901,1777081173745,-500.0,7.666e-05,2]
[421114902,1777081173780,-330.28230696,7.666e-05,2]
[421114903,1777081173816,-500.0,7.666e-05,2]
[421114904,1777081173851,-592.56646407,7.666e-05,2]
[421114905,1777081173887,-500.0,7.666e-05,2]
[421114906,1777081173923,-500.0,7.666e-05,2]
[421114907,1777081173951,-500.0,7.666e-05,2]
[421114908,1777081173981,-500.0,7.666e-05,2]
[421114909,1777081174009,-218.49213756,7.666e-05,2]
[421114910,1777081174037,-166.57949162,7.666e-05,2]